bitfinex-derivatives/quotes_ETHF0:USTF0_20240904
["timestamp","ask_amount","ask_price","bid_price","bid_amount"]
[1725415963446,0.42307,2364.0,2363.9,1.4017]
[1725415967048,3.53580472,2364.2,2363.7,1.2695]
[1725415967245,4.34764,2364.1,2363.5,1.37954129]
[1725415967452,0.42312,2363.8,2363.5,1.37954129]
[1725415967845,6.4978,2363.9,2363.5,0.00634129]
[1725415968246,3.63094,2363.6,2363.5,0.00634129]
[1725415968642,7.86214,2363.6,2363.5,0.00634129]
[1725415969658,8.92,2363.6,2363.5,0.00634129]
[1725415970956,14.92,2363.6,2363.5,0.00634129]
[1725415971663,15.03676544,2363.6,2363.5,0.00634129]
[1725415971859,0.42321,2363.3,2363.1,1.3732]
[1725415972057,0.42321,2363.2,2363.1,1.3732]
[1725415972264,0.42325,2363.0,2362.7,1.3275]
[1725415973258,0.42958129,2363.1,2362.7,1.3275]
[1725415973460,0.00634129,2363.1,2362.7,1.7508]
[1725415973662,0.00634129,2363.1,2362.9,0.42326]
[1725415973967,0.00634129,2363.1,2363.0,1.3383]
[1725415974469,0.00634129,2363.1,2363.0,5.5703]
[1725415974662,0.00634129,2363.1,2363.0,1.3383]
[1725415976967,0.00634129,2363.1,2363.0,1.76155]
[1725415979073,0.00634129,2363.1,2363.0,1.3383]
[1725415980277,0.42957129,2363.1,2363.0,1.3383]
[1725415980472,0.42328,2362.9,2362.7,1.3275]
[1725415980668,0.42327,2362.9,2362.7,1.3275]
[1725415982371,1.33054129,2363.1,2362.7,1.3275]
[1725415982372,0.42326,2363.0,2362.7,1.3275]
[1725415982563,1.75378129,2363.1,2362.7,1.75079]
[1725415982766,1.75378129,2363.1,2362.8,1.3681]
[1725415983476,0.42325,2363.0,2362.8,1.3681]
[1725415984470,0.42325,2363.0,2362.6,1.40234129]
[1725415984471,3.29,2363.0,2362.6,1.40234129]
[1725415984666,3.2078,2362.8,2362.6,1.40234129]
[1725415984875,0.4233,2362.7,2362.6,1.40234129]
[1725415985175,0.4233,2362.7,2362.6,0.00634129]
[1725415985575,9.00437,2362.7,2362.6,0.00634129]
[1725415986277,1.05834,2362.6,2362.0,3.2078]
[1725415986482,1.05834,2362.6,2361.5,5.8413]
[1725415986483,3.29,2362.4,2361.5,5.8413]
[1725415986679,0.42341,2362.2,2361.7,0.42348]
[1725415987682,0.42341,2362.2,2361.6,1.82379]
[1725415988080,4.4973,2362.5,2361.6,4.6903]
[1725415988283,3.2078,2362.5,2361.8,6.4978]
[1725415988580,3.63114,2362.5,2361.8,6.4978]
[1725415988784,3.63114,2362.5,2361.9,0.42344]
[1725415988979,0.42337,2362.4,2361.9,0.42344]
[1725415989172,3.2078,2362.5,2361.6,4.6903]
[1725415989382,0.4234,2362.2,2361.7,0.42347]
[1725415989580,0.4234,2362.2,2361.6,5.11379]
[1725415989878,0.4234,2362.2,2361.7,0.42348]
[1725415990086,0.42341,2362.1,2361.8,3.2078]
[1725415990487,0.4234,2362.2,2361.8,3.2078]
[1725415990788,3.74776873,2362.5,2362.0,0.42341]
[1725415991091,3.63115,2362.5,2362.1,2.619]
[1725415991383,3.63115,2362.5,2362.2,1.3281]
[1725415993183,0.42336,2362.4,2362.2,1.3281]
[1725415993588,3.63115,2362.5,2362.2,1.3281]
[1725415993983,3.2078,2362.5,2362.2,1.3281]
[1725415994179,3.2078,2362.5,2362.2,1.75149]
[1725415994384,3.63114,2362.5,2362.2,1.3281]
[1725415994585,3.2078,2362.5,2362.2,1.75149]
[1725415994888,3.63114,2362.5,2362.2,1.75149]
[1725415995089,3.63114,2362.5,2362.2,1.3281]
[1725415995485,3.2078,2362.5,2362.3,0.42337]
[1725415995879,0.42337,2362.3,2362.2,1.3281]
[1725415996085,7.4406,2362.5,2362.1,1.2925]
[1725415996086,3.29,2362.4,2362.1,1.2925]
[1725415996291,0.42339,2362.2,2362.1,1.2925]
[1725415996886,3.29,2362.4,2361.8,2.7505]
[1725415997085,3.29,2362.2,2361.8,1.3701]
[1725415997294,6.4978,2362.2,2361.8,1.3701]
[1725415997490,0.42342,2362.1,2361.8,1.3701]
[1725415999300,0.4234,2362.2,2361.8,1.79356]
[1725415999589,3.63115,2362.5,2362.0,0.42342]
[1725415999791,3.2078,2362.5,2361.9,1.3783]
[1725415999997,0.42338,2362.3,2361.9,1.80174]
[1725416000996,3.29,2362.4,2361.9,1.3783]
[1725416001392,3.71337,2362.4,2362.0,0.42343]
[1725416001597,3.2078,2362.5,2362.1,0.4234]
[1725416001800,3.63115,2362.5,2362.1,0.4234]
[1725416002200,0.42336,2362.4,2362.0,0.42342]
[1725416002793,0.42336,2362.4,2362.1,0.42341]
[1725416002995,3.63115,2362.5,2362.1,0.42341]
[1725416003194,0.42336,2362.4,2362.1,0.42341]
[1725416003398,3.2078,2362.5,2362.2,0.42339]
[1725416003596,3.63115,2362.5,2362.3,2.6399]
[1725416004101,3.2078,2362.5,2362.3,2.6399]
[1725416004304,3.2078,2362.5,2362.3,3.06327]
[1725416004603,3.2078,2362.5,2362.4,4.65616]
[1725416005899,3.2078,2362.9,2362.4,4.2328]
[1725416006193,3.2078,2362.9,2362.8,0.42329]
[1725416006393,0.00634129,2363.1,2362.8,4.232]
[1725416006593,0.00634129,2363.1,2363.0,0.42325]
[1725416006999,0.00634129,2363.1,2363.0,4.65525]
[1725416008208,4.117,2363.7,2363.0,13.522]
[1725416008397,3.2078,2363.7,2363.1,1.3097]
[1725416008592,0.42321,2363.2,2363.1,1.3097]
[1725416008794,1.05787,2363.6,2363.1,1.3097]
[1725416008795,0.4232,2363.3,2363.1,1.3097]
[1725416009002,0.42319,2363.4,2363.1,1.3097]
[1725416009203,0.4232,2363.3,2363.1,1.3097]
[1725416009404,0.42321,2363.2,2363.0,0.00634129]
[1725416009596,0.42321,2363.3,2363.0,0.00634129]
[1725416010199,0.00634129,2363.5,2363.0,0.00634129]
[1725416010200,0.42321,2363.2,2363.0,0.00634129]
[1725416010413,3.2078,2363.4,2363.0,0.00634129]
[1725416010602,0.4232,2363.3,2363.0,0.00634129]
[1725416011007,3.2078,2363.4,2363.0,0.00634129]
[1725416011210,3.63099,2363.4,2363.0,0.00634129]
[1725416011408,0.42321,2363.3,2363.0,0.00634129]
[1725416013510,3.63099,2363.4,2363.0,0.42959129]
[1725416013808,0.4232,2363.3,2363.0,0.42959129]
[1725416014011,3.2078,2363.4,2363.1,0.42322]
[1725416014205,0.42951129,2363.5,2363.1,3.2078]
[1725416014206,0.00634129,2363.5,2363.1,3.2078]
[1725416014404,0.00634129,2363.5,2363.2,1.2397]
[1725416014708,0.00634129,2363.5,2363.3,0.4232]
[1725416015011,0.00634129,2363.5,2363.4,0.42318]
[1725416015405,0.00634129,2363.5,2363.4,4.65438]
[1725416016204,0.00634129,2363.5,2363.4,10.65438]
[1725416016399,0.00634129,2363.5,2363.4,17.15218]
[1725416016910,3.2078,2364.2,2363.4,16.729]
[1725416017114,0.42302,2364.3,2364.0,0.42306]
[1725416017314,0.42304,2364.2,2363.9,0.42308]
[1725416017520,0.42304,2364.2,2364.0,1.2395]
[1725416017811,0.42305,2364.1,2364.0,1.2395]
[1725416018313,0.00634129,2364.3,2363.7,6.4978]
[1725416018314,0.4231,2363.9,2363.7,3.2078]
[1725416019107,0.42309,2363.9,2363.7,3.2078]
[1725416019306,3.2078,2364.2,2363.7,3.63092]
[1725416019307,0.42308,2364.0,2363.7,3.63092]
[1725416020010,1.06392129,2364.3,2364.1,0.42304]
[1725416020011,0.00634129,2364.3,2364.1,0.42304]
[1725416020210,0.00634129,2364.3,2364.1,0.42305]
[1725416020604,0.00634129,2364.3,2364.2,0.42303]
[1725416020811,0.00634129,2364.3,2364.2,1.63913]
[1725416021005,0.00634129,2364.3,2364.2,5.86873]
[1725416021707,0.00634129,2364.3,2364.2,1.63913]
[1725416022004,0.00634129,2364.3,2364.2,5.4457]
[1725416022208,0.00634129,2364.3,2364.2,5.86873]
[1725416023214,0.00634129,2364.3,2364.2,5.4457]
[1725416023718,0.00634129,2364.3,2364.2,1.2161]
[1725416024514,0.00634129,2364.3,2364.0,4.5242]
[1725416024715,0.42306,2364.1,2363.7,0.42311]
[1725416024921,0.42307,2364.0,2363.7,1.2123]
[1725416025223,0.42306,2364.1,2363.7,1.63542]
[1725416025719,0.42308,2364.0,2363.7,1.2123]
[1725416025912,0.42306,2364.1,2363.7,1.2123]
[1725416026214,0.42306,2364.1,2363.7,1.63542]
[1725416026412,0.42306,2364.1,2363.7,2.84672]
[1725416026613,0.42308,2364.0,2363.7,2.4236]
[1725416026812,0.42309,2364.0,2363.7,1.2123]
[1725416027218,1.2742,2364.1,2363.7,1.2123]
[1725416027219,1.69726,2364.1,2363.7,1.2123]
[1725416029822,1.2742,2364.1,2363.8,0.4231]
[1725416030022,3.75762598,2364.3,2363.8,0.4231]
[1725416030224,1.87792598,2364.3,2363.8,0.4231]
[1725416030413,1.33444129,2364.3,2363.9,0.42308]
[1725416030817,1.33444129,2364.3,2363.8,3.29]
[1725416031026,0.00634129,2364.3,2364.0,3.29]
[1725416031216,0.00634129,2364.3,2364.1,0.42304]
[1725416031615,0.00634129,2364.3,2364.1,4.65264]
[1725416031819,0.00634129,2364.3,2364.2,0.42303]
[1725416032015,0.00634129,2364.3,2363.9,3.2078]
[1725416032219,0.00634129,2364.3,2363.9,0.42308]
[1725416032429,0.00634129,2364.3,2364.1,0.42305]
[1725416034526,0.00634129,2364.3,2364.2,0.42303]
[1725416037232,0.00634129,2364.3,2364.2,1.68003]
[1725416037435,0.00634129,2364.3,2364.2,1.257]
[1725416037935,0.42936129,2364.3,2364.0,0.42306]
[1725416038236,0.42936129,2364.3,2363.9,6.4978]
[1725416038634,0.42936129,2364.3,2363.9,6.92088]
[1725416038934,0.42936129,2364.3,2363.9,6.4978]
[1725416039127,0.42936129,2364.3,2363.9,6.92088]
[1725416039730,0.00634129,2364.3,2364.0,0.42306]
[1725416040332,0.00634129,2364.3,2363.9,6.92088]
[1725416040528,0.42936129,2364.3,2363.9,6.92088]
[1725416040834,0.42304,2364.2,2363.9,6.92088]
[1725416041634,0.42937129,2364.3,2363.9,6.92088]
[1725416041837,0.00634129,2364.3,2363.9,6.4978]
[1725416042040,0.00634129,2364.3,2364.0,0.42307]
[1725416042636,0.00634129,2364.3,2364.0,0.42306]
[1725416043040,0.00634129,2364.3,2364.1,0.42304]
[1725416043335,0.00634129,2364.3,2364.0,0.42306]
[1725416043635,0.00634129,2364.3,2364.0,0.42307]
[1725416044134,0.00634129,2364.3,2363.9,3.2078]
[1725416044338,0.00634129,2364.3,2363.7,1.318]
[1725416044339,0.42308,2364.0,2363.7,1.318]
[1725416044632,3.75342023,2364.2,2363.6,3.2078]
[1725416044836,0.4231,2363.9,2363.6,3.2078]
[1725416045025,6.4978,2364.1,2363.2,5.6119]
[1725416045229,0.42313,2363.7,2363.3,0.42319]
[1725416046132,0.42315,2363.6,2363.2,6.0351]
[1725416047243,0.42315,2363.6,2362.9,3.2078]
[1725416047244,0.4232,2363.3,2362.9,3.2078]
[1725416047539,0.4232,2363.3,2362.7,0.4233]
[1725416047540,1.54442,2363.2,2362.7,1.51889]
[1725416047842,1.54442,2363.2,2362.7,1.0956]
[1725416048234,0.42318,2363.4,2362.8,3.29]
[1725416048529,0.42318,2363.4,2362.9,0.42327]
[1725416048739,3.2078,2363.5,2363.0,3.29634129]
[1725416048943,3.2078,2363.5,2363.0,3.71958129]
[1725416049135,3.2078,2363.5,2363.0,3.29634129]
[1725416049335,0.42319,2363.4,2363.0,0.00634129]
[1725416049833,0.4232,2363.3,2363.0,0.00634129]
[1725416050032,3.2078,2363.5,2363.0,0.00634129]
[1725416050239,0.42318,2363.4,2363.0,0.00634129]
[1725416051042,1.1555,2363.6,2363.0,3.29634129]
[1725416051237,1.1555,2363.6,2363.2,0.42321]
[1725416051445,1.1555,2363.6,2363.1,4.76702]
[1725416051639,1.1144,2363.8,2363.3,0.42319]
[1725416051944,1.53751,2363.8,2363.2,4.8196]
[1725416052245,0.42313,2363.7,2363.3,1.1058]
[1725416053335,1.1144,2363.8,2363.3,1.1058]
[1725416053336,0.42314,2363.6,2363.3,1.1058]
[1725416053531,1.1144,2363.8,2363.3,1.1058]
[1725416053849,0.42316,2363.6,2363.2,1.1064]
[1725416054141,0.42316,2363.6,2363.2,2.2122]
[1725416054343,0.42316,2363.5,2363.2,2.2122]
[1725416055342,0.42318,2363.4,2363.2,2.2122]
[1725416055642,0.42316,2363.5,2363.2,2.2122]
[1725416056138,0.42315,2363.6,2363.2,2.2122]
[1725416057236,0.42316,2363.5,2363.2,2.2122]
[1725416057439,4.40424418,2363.9,2363.3,0.42319]
[1725416057647,0.42312,2363.7,2363.3,0.42319]
[1725416057846,0.42312,2363.7,2363.2,2.6354]
[1725416058940,0.42318,2363.5,2363.2,2.2122]
[1725416059133,0.42318,2363.4,2363.2,2.2122]
[1725416059735,0.42317,2363.5,2363.2,2.2122]
[1725416060340,0.42315,2363.6,2363.2,2.63541]
[1725416060546,0.42313,2363.7,2363.2,2.2122]
[1725416060748,0.42313,2363.7,2363.2,2.6354]
[1725416061843,0.42313,2363.7,2363.3,0.42319]
[1725416062145,3.2078,2364.2,2363.9,0.42308]
[1725416062346,0.00634129,2364.3,2364.0,0.42307]
[1725416062540,0.00634129,2364.3,2364.2,3.71303]
[1725416062846,3.6307,2365.0,2364.2,3.29]
[1725416063150,3.2078,2365.0,2364.8,0.42292]
[1725416063341,0.1162099,2365.3,2365.0,0.42288]
[1725416063543,3.2078,2365.4,2364.9,3.29]
[1725416063746,0.42274,2365.9,2365.1,3.29]
[1725416063944,0.00634129,2365.7,2365.4,0.42281]
[1725416064335,0.00634129,2365.7,2365.3,0.42917129]
[1725416064544,0.00634129,2365.7,2365.3,0.00634129]
[1725416064748,0.00634129,2365.7,2365.3,0.42917129]
[1725416065050,0.00634129,2365.7,2365.4,0.42282]
[1725416065254,0.00634129,2365.7,2365.5,0.42279]
[1725416065458,0.00634129,2365.7,2365.6,3.63058]
[1725416066043,0.00634129,2365.7,2365.5,0.42279]
[1725416066243,0.00634129,2365.7,2365.6,0.42278]
[1725416067553,0.00634129,2365.7,2365.3,3.21414129]
[1725416067746,0.42282,2365.4,2365.3,0.00634129]
[1725416067949,4.23354129,2365.7,2365.3,0.00634129]
[1725416067950,0.42281,2365.5,2365.3,0.00634129]
[1725416068147,0.42282,2365.4,2365.3,0.00634129]
[1725416068841,0.4228,2365.6,2365.3,0.00634129]
[1725416069042,0.12750953,2365.7,2365.3,0.00634129]
[1725416069843,0.42282,2365.4,2365.3,0.00634129]
[1725416070053,0.4228,2365.5,2365.3,0.00634129]
[1725416070446,0.12750953,2365.7,2365.3,0.00634129]
[1725416070649,0.42282,2365.4,2365.3,0.00634129]
[1725416071355,0.4228,2365.6,2365.3,0.00634129]
[1725416071656,0.12750953,2365.7,2365.3,0.00634129]
[1725416072352,0.55028953,2365.7,2365.3,0.00634129]
[1725416072650,0.12750953,2365.7,2365.3,0.00634129]
[1725416072850,0.00634129,2365.7,2365.3,0.00634129]
[1725416073047,0.4228,2365.5,2365.3,0.00634129]
[1725416073248,0.00634129,2365.7,2365.3,0.00634129]
[1725416073445,0.42912129,2365.7,2365.3,0.00634129]
[1725416073959,0.00634129,2365.7,2365.3,0.00634129]
[1725416074457,0.42911129,2365.7,2365.3,0.00634129]
[1725416074652,0.4228,2365.5,2365.3,0.00634129]
[1725416075358,0.42282,2365.4,2365.3,0.00634129]
[1725416075758,4.65082,2365.4,2365.3,0.00634129]
[1725416075956,7.85862,2365.4,2365.3,0.00634129]
[1725416076254,0.42282,2365.4,2365.3,0.00634129]
[1725416076454,4.65082,2365.4,2365.3,0.00634129]
[1725416076658,7.85862,2365.4,2365.3,0.00634129]
[1725416076954,4.65082,2365.4,2365.3,0.00634129]
[1725416078559,7.85862,2365.4,2365.3,0.00634129]
[1725416079961,0.42288,2365.1,2364.7,1.1358]
[1725416080161,0.42287,2365.2,2364.7,1.55874]
[1725416080463,4.23776275,2365.5,2364.7,1.1358]
[1725416080658,4.66057275,2365.5,2365.0,0.42289]
[1725416080955,4.117,2365.5,2365.1,0.42286]
[1725416081163,4.117,2365.5,2365.1,0.00634129]
[1725416081351,4.117,2365.5,2365.3,0.42283]
[1725416081551,3.21414129,2365.7,2365.3,0.42283]
[1725416081865,3.63691129,2365.7,2365.2,0.42285]
[1725416082654,0.00634129,2365.7,2365.3,0.42283]
[1725416083360,0.42911129,2365.7,2365.3,0.42283]
[1725416083563,0.42911129,2365.7,2365.2,0.42285]
[1725416083756,3.63691129,2365.7,2365.2,0.42284]
[1725416083953,3.21414129,2365.7,2365.3,0.42283]
[1725416084559,0.42911129,2365.7,2365.3,0.42283]
[1725416085163,0.00634129,2365.7,2365.3,0.42283]
[1725416085368,0.00634129,2365.7,2365.4,0.42282]
[1725416085657,0.00634129,2365.7,2365.3,1.1337]
[1725416085658,0.42911129,2365.7,2365.3,1.1337]
[1725416086059,0.42911129,2365.7,2365.3,1.55654]
[1725416086754,0.42911129,2365.7,2365.3,1.1337]
[1725416086960,0.4228,2365.6,2365.3,1.1337]
[1725416087659,0.42912129,2365.7,2365.3,1.1337]
[1725416087960,0.42278,2365.6,2365.3,1.1337]
[1725416088762,0.4228,2365.5,2365.3,1.1337]
[1725416088967,0.42279,2365.6,2365.3,1.1337]
[1725416089454,0.42281,2365.5,2365.3,1.1337]
[1725416089657,0.42278,2365.6,2365.3,1.1337]
[1725416089852,0.42281,2365.5,2365.3,1.1337]
[1725416092365,0.42279,2365.6,2365.3,1.1337]
[1725416092566,0.54679049,2365.7,2365.3,1.1337]
[1725416092767,0.42911129,2365.7,2365.3,1.55654]
[1725416093566,0.42911129,2365.7,2365.3,1.1337]
[1725416094466,0.42912129,2365.7,2365.3,1.55654]
[1725416094666,0.42279,2365.6,2365.3,1.1337]
[1725416098169,0.00634129,2365.7,2365.3,1.1337]
[1725416098372,3.2078,2365.5,2365.1,0.00634129]
[1725416098674,3.63066,2365.2,2365.1,0.00634129]
[1725416098867,3.84345295,2365.2,2365.1,0.00634129]
[1725416099268,3.63066,2365.2,2365.1,0.00634129]
[1725416101069,1.1138,2365.4,2365.1,0.00634129]
[1725416101267,0.42284,2365.3,2365.1,0.00634129]
[1725416101878,0.42286,2365.2,2365.1,0.00634129]
[1725416102078,0.63582981,2365.2,2365.1,0.00634129]
[1725416102280,5.92097981,2365.2,2365.1,0.00634129]
[1725416102476,11.95732981,2365.2,2364.6,1.1233]
[1725416102675,1.30646981,2365.2,2364.6,1.1233]
[1725416102982,0.42291,2364.9,2364.6,1.1233]
[1725416103371,2.36361981,2365.2,2364.6,1.1233]
[1725416103574,0.42293,2364.8,2364.6,1.1233]
[1725416103885,0.42292,2364.9,2364.6,1.1233]
[1725416104068,5.65363,2365.4,2364.7,6.4978]
[1725416104264,5.2308,2365.4,2364.7,7.624]
[1725416104463,5.2308,2365.4,2364.9,3.29]
[1725416104671,4.117,2365.4,2365.1,0.42287]
[1725416104871,1.56919,2365.6,2365.1,0.42287]
[1725416105169,0.42281,2365.5,2365.1,1.1554]
[1725416105365,0.42282,2365.5,2365.1,1.1554]
[1725416105577,0.42281,2365.5,2365.1,1.1554]
[1725416106084,0.42281,2365.5,2365.0,1.48848]
[1725416106085,0.42284,2365.3,2365.0,1.0656]
[1725416107276,3.2078,2365.4,2365.0,1.0656]
[1725416107669,3.63063,2365.4,2365.0,1.0656]
[1725416108074,0.42284,2365.3,2365.0,1.0656]
[1725416108772,3.63063,2365.4,2365.0,1.48849]
[1725416109479,3.63063,2365.4,2365.0,1.0656]
[1725416109676,0.42284,2365.3,2365.0,1.0656]
[1725416109983,3.63063,2365.4,2365.0,1.48849]
[1725416111178,3.63063,2365.4,2365.1,0.42287]
[1725416111379,3.63063,2365.4,2365.0,1.0656]
[1725416111380,3.2078,2365.4,2365.3,3.29]
[1725416111582,0.00634129,2365.7,2365.5,0.42279]
[1725416112182,0.00634129,2365.7,2365.6,0.42278]
[1725416112574,5.17371,2366.2,2365.6,0.42278]
[1725416112575,3.2078,2366.3,2365.8,0.42274]
[1725416112780,3.2078,2366.3,2365.4,2.2573]
[1725416112781,0.42278,2365.7,2365.4,2.2573]
[1725416113277,0.42276,2365.8,2365.4,2.68011]
[1725416113477,4.367,2366.0,2365.4,2.2573]
[1725416113683,0.42275,2365.8,2365.5,0.00634129]
[1725416114284,0.42908129,2365.9,2365.5,0.00634129]
[1725416114789,0.42275,2365.8,2365.5,0.00634129]
[1725416114976,0.00634129,2365.9,2365.5,0.42914129]
[1725416115177,0.00634129,2365.9,2365.5,3.29634129]
[1725416115381,0.00634129,2365.9,2365.7,0.42275]
[1725416116394,0.00634129,2365.9,2365.8,7.93995]
[1725416116590,0.00634129,2365.9,2365.8,3.71275]
[1725416116895,0.00634129,2365.9,2365.8,7.93995]
[1725416117089,0.00634129,2365.9,2365.8,7.5172]
[1725416117399,0.00634129,2365.9,2365.8,7.93995]
[1725416117587,0.00634129,2365.9,2365.8,7.5172]
[1725416119392,0.00634129,2365.9,2365.8,17.14775]
[1725416120502,0.00634129,2365.9,2365.8,11.14775]
[1725416120795,0.00634129,2365.9,2365.8,17.14775]
[1725416120997,0.11826499,2366.5,2366.1,0.42269]
[1725416121194,0.42261,2366.6,2366.3,3.29]
[1725416121790,3.6304,2366.7,2366.3,3.71266]
[1725416121993,0.42894129,2366.7,2366.3,3.29]
[1725416122197,0.42894129,2366.7,2366.3,3.71266]
[1725416122395,0.42894129,2366.7,2366.4,1.0828]
[1725416123009,0.42261,2366.6,2366.4,1.0828]
[1725416123300,0.42894129,2366.7,2366.4,1.0828]
[1725416123486,0.42261,2366.6,2366.4,1.0828]
[1725416123690,0.00634129,2366.7,2366.2,1.143]
[1725416123890,0.42263,2366.5,2366.2,1.143]
[1725416124098,3.29634129,2366.7,2365.9,3.29]
[1725416124300,1.05657,2366.5,2365.7,7.5806]
[1725416124498,1.05657,2366.5,2365.7,8.00336]
[1725416124499,0.42269,2366.2,2365.7,8.00336]
[1725416125093,0.42267,2366.3,2365.9,3.29]
[1725416125698,0.42268,2366.2,2365.9,3.29]
[1725416125899,0.42269,2366.2,2365.9,3.29]
[1725416126200,0.42269,2366.2,2365.7,3.29]
[1725416126201,0.42274,2365.9,2365.7,3.29]
[1725416127003,1.0967,2366.1,2365.8,3.29]
[1725416127407,1.0967,2366.1,2365.7,4.3776]
[1725416127700,0.42272,2366.0,2365.7,4.3776]
[1725416128602,1.0967,2366.1,2365.7,4.3776]
[1725416128603,0.42273,2365.9,2365.7,4.3776]
[1725416128808,0.42274,2365.9,2365.7,3.29]
[1725416129010,3.2078,2366.0,2365.7,3.29]
[1725416129011,3.2078,2366.0,2365.7,3.71277]
[1725416129205,3.2078,2366.0,2365.8,2.1337]
[1725416129897,4.23498742,2366.3,2365.9,3.29]
[1725416130303,0.11798742,2366.3,2365.8,2.1337]
[1725416130510,3.2078,2366.2,2365.8,2.1337]
[1725416130902,0.4227,2366.1,2365.8,2.1337]
[1725416131406,0.42271,2366.1,2365.6,1.1403]
[1725416131606,0.42271,2366.1,2365.7,1.0888]
[1725416131903,3.2078,2366.2,2365.9,3.29]
[1725416132100,0.42265,2366.4,2365.9,3.29]
[1725416132413,4.8319028,2366.5,2365.9,3.71273]
[1725416132598,4.8319028,2366.5,2365.9,3.71272]
[1725416132806,0.42264,2366.4,2365.9,3.71272]
[1725416133403,0.42264,2366.4,2365.9,3.29]
[1725416133598,0.42264,2366.4,2365.9,3.71273]
[1725416134000,0.4227,2366.1,2365.7,4.2966]
[1725416134202,1.05666,2366.3,2365.7,4.2966]
[1725416134406,0.42272,2366.0,2365.7,1.0888]
[1725416134809,3.63051,2366.1,2365.7,1.0888]
[1725416135111,3.63045,2366.4,2365.9,3.29]
[1725416135302,0.42266,2366.3,2365.9,3.29]
[1725416135897,0.42266,2366.4,2365.9,3.71273]
[1725416136115,3.63046,2366.4,2365.9,3.29]
[1725416136606,3.63046,2366.4,2365.9,3.71272]
[1725416137004,3.2078,2366.4,2366.0,0.42271]
[1725416137704,1.2014628,2366.5,2365.9,3.29]
[1725416137905,0.42268,2366.3,2365.9,3.29]
[1725416138105,1.2014628,2366.5,2365.9,3.29]
[1725416138307,1.50273,2366.5,2366.1,0.42269]
[1725416138602,4.117,2366.6,2365.9,3.29]
[1725416138914,4.117,2366.6,2366.2,0.42267]
[1725416139211,4.53961,2366.6,2366.3,2.2331]
[1725416139803,4.117,2366.6,2366.3,2.2331]
[1725416140304,0.42269,2366.1,2366.0,3.2078]
[1725416140506,6.4978,2366.2,2365.5,0.00634129]
[1725416140803,5.2943,2366.5,2365.5,0.00634129]
[1725416140804,3.63058,2365.6,2365.5,0.00634129]
[1725416141909,0.42277,2365.7,2365.5,0.00634129]
[1725416143011,0.42278,2365.6,2365.5,0.00634129]
[1725416143213,0.42276,2365.8,2365.5,0.00634129]
[1725416143410,0.42276,2365.8,2365.7,3.29]
[1725416143411,0.42275,2365.8,2365.7,3.29]
[1725416143614,4.2757,2365.9,2365.5,3.29634129]
[1725416144011,0.20625074,2365.8,2365.5,3.29634129]
[1725416144314,0.42277,2365.7,2365.5,3.29634129]
[1725416144621,1.0826,2366.0,2365.6,3.29]
[1725416144917,1.0826,2366.0,2365.6,5.5533]
[1725416145621,1.50533,2366.0,2365.6,5.5533]
[1725416146007,0.42274,2365.9,2365.6,5.5533]
[1725416146219,1.50532,2366.0,2365.6,5.5533]
[1725416146412,1.0826,2366.0,2365.6,5.5533]
[1725416146618,3.63048,2366.2,2365.8,3.29]
[1725416147121,3.2078,2366.2,2365.8,3.29]
[1725416147813,0.42267,2366.3,2365.8,3.29]
[1725416148012,0.42268,2366.2,2365.8,3.29]
[1725416149818,3.63049,2366.2,2365.8,3.29]
[1725416150023,3.2078,2366.2,2365.8,3.29]
[1725416150329,3.2078,2366.2,2365.6,3.3988]
[1725416150330,0.42272,2366.0,2365.6,6.6888]
[1725416151025,0.42273,2365.9,2365.6,6.6888]
[1725416151423,0.42272,2366.0,2365.6,6.6888]
[1725416151629,3.2078,2366.2,2365.9,3.29]
[1725416151923,0.42271,2366.0,2365.9,3.29]
[1725416154525,0.42271,2366.1,2365.9,3.29]
[1725416154719,3.2078,2366.2,2365.9,3.29]
[1725416154921,0.42271,2366.0,2365.9,3.29]
[1725416155221,0.42271,2366.1,2365.9,3.29]
[1725416155818,0.42271,2366.0,2365.9,3.29]
[1725416157724,0.42267,2366.3,2365.9,3.29]
[1725416157926,5.38192054,2366.4,2365.9,3.71272]
[1725416158128,5.80457054,2366.4,2365.9,3.71272]
[1725416158337,5.38192054,2366.4,2366.1,3.29]
[1725416159125,5.266,2366.4,2366.1,3.29]
[1725416159520,1.149,2366.4,2366.1,4.81649]
[1725416159720,3.2078,2366.5,2366.3,3.29]
[1725416160133,0.00634129,2366.7,2366.3,3.29]
[1725416160425,0.00634129,2366.7,2366.5,3.29]
[1725416160650,0.00634129,2366.7,2366.6,1.1038]
[1725416163555,0.00634129,2366.7,2366.6,5.75201]
[1725416163852,7.3248,2367.3,2366.8,0.42256]
[1725416164040,5.2531,2367.6,2367.1,3.71252]
[1725416164236,5.67553,2367.6,2367.4,3.29]
[1725416164448,1.1361,2367.6,2367.4,3.29]
[1725416165043,0.00634129,2367.7,2367.4,3.29]
[1725416165241,0.00634129,2367.7,2367.3,0.00634129]
[1725416165242,0.00634129,2367.7,2367.6,3.29]
[1725416165451,4.117,2368.2,2367.6,7.93563]
[1725416165654,4.117,2368.2,2368.0,3.29]
[1725416165849,4.53932,2368.2,2368.0,3.29]
[1725416166055,1.1361,2368.4,2368.0,3.29]
[1725416166251,7.3248,2368.6,2368.1,4.4028]
[1725416166451,3.21414129,2368.6,2368.4,3.29]
[1725416166648,0.42227,2368.5,2368.4,3.29]
[1725416166851,0.42227,2368.5,2368.2,5.4569]
[1725416167041,0.54716852,2368.6,2368.2,5.4569]
[1725416167243,0.42227,2368.5,2368.2,5.4569]
[1725416167848,3.2078,2368.3,2368.0,3.29]
[1725416168150,3.2078,2368.3,2367.8,3.29]
[1725416168151,0.42235,2368.1,2367.8,3.29]
[1725416168348,0.42237,2368.0,2367.8,3.29]